bitfinex-derivatives/quotes_BTCF0:USTF0_20240905
["timestamp","ask_amount","ask_price","bid_price","bid_amount"]
[1725560249726,0.69597777,56646.0,56645.0,0.002]
[1725560251927,0.60769777,56646.0,56645.0,0.002]
[1725560252328,0.3678,56646.0,56645.0,0.330282]
[1725560252632,0.3608,56651.0,56650.0,0.176548]
[1725560252827,0.4858,56662.0,56657.0,0.088262]
[1725560252828,0.088262,56658.0,56657.0,0.088262]
[1725560253029,0.088262,56658.0,56657.0,1.828262]
[1725560253429,0.3608,56662.0,56657.0,0.24]
[1725560253627,0.3608,56667.0,56661.0,0.24]
[1725560253934,0.3608,56677.0,56668.0,0.088244]
[1725560254237,0.3608,56677.0,56665.0,0.3608]
[1725560254238,0.3608,56672.0,56665.0,0.3608]
[1725560254433,0.088249,56666.0,56665.0,0.3608]
[1725560254832,0.088249,56666.0,56665.0,0.449051]
[1725560255233,0.0087734,56669.0,56662.0,1.50168]
[1725560255428,0.088246,56668.0,56666.0,0.088248]
[1725560255740,0.088249,56666.0,56665.0,0.001]
[1725560256132,0.088249,56666.0,56665.0,0.002]
[1725560256433,1.305938,56666.0,56665.0,0.002]
[1725560256642,0.26478,56659.0,56658.0,0.0002649]
[1725560256837,0.86558,56659.0,56658.0,0.0002649]
[1725560257036,1.99506,56659.0,56658.0,0.0002649]
[1725560258032,1.99506,56659.0,56658.0,0.0012649]
[1725560259339,1.99506,56659.0,56658.0,0.0022649]
[1725560259742,1.39506,56659.0,56658.0,0.0022649]
[1725560260239,1.67680875,56659.0,56658.0,0.0022649]
[1725560260441,1.98013349,56659.0,56658.0,0.0022649]
[1725560260736,2.10780495,56659.0,56658.0,0.0022649]
[1725560261543,2.19606495,56659.0,56658.0,0.0022649]
[1725560261843,2.10780495,56659.0,56658.0,0.0022649]
[1725560262137,2.19606495,56659.0,56658.0,0.0022649]
[1725560262641,2.19606495,56659.0,56658.0,9e-07]
[1725560263944,2.14084942,56659.0,56658.0,9e-07]
[1725560268544,2.00506875,56659.0,56658.0,9e-07]
[1725560270051,1.91680875,56659.0,56653.0,9e-07]
[1725560270249,0.953872,56654.0,56653.0,9e-07]
[1725560270455,0.97043775,56654.0,56653.0,9e-07]
[1725560271259,0.97043775,56654.0,56653.0,0.0010009]
[1725560271458,0.953872,56654.0,56653.0,0.0010009]
[1725560271761,0.953872,56654.0,56653.0,9e-07]
[1725560271963,0.953872,56654.0,56653.0,0.0010009]
[1725560271964,0.714872,56654.0,56653.0,0.0010009]
[1725560272448,0.716872,56654.0,56653.0,0.0020009]
[1725560273363,0.627604,56654.0,56653.0,0.0010009]
[1725560273662,0.628604,56654.0,56653.0,0.0020009]
[1725560274058,0.627604,56654.0,56653.0,0.0010009]
[1725560274249,0.628604,56654.0,56653.0,0.0020009]
[1725560274755,0.627604,56654.0,56653.0,0.0010009]
[1725560274954,0.628604,56654.0,56653.0,0.0020009]
[1725560275667,0.68993116,56654.0,56653.0,0.0010009]
[1725560275966,0.69193116,56654.0,56653.0,0.0020009]
[1725560278755,0.003,56654.0,56653.0,1.3715209]
[1725560278954,0.003,56654.0,56653.0,1.4597899]
[1725560279166,0.003,56654.0,56653.0,0.3302699]
[1725560279365,0.003,56654.0,56653.0,1.8302699]
[1725560279768,0.003,56654.0,56653.0,1.5902699]
[1725560279959,0.091268,56654.0,56653.0,1.5020009]
[1725560280265,0.003,56654.0,56653.0,0.3302699]
[1725560280459,0.002,56654.0,56653.0,0.3292699]
[1725560280659,0.003,56654.0,56653.0,0.3302699]
[1725560281167,0.01289603,56654.0,56653.0,0.3302699]
[1725560282264,0.003,56654.0,56653.0,0.3302699]
[1725560282455,0.003,56654.0,56653.0,0.4185389]
[1725560282655,0.003,56654.0,56653.0,1.5480589]
[1725560283464,0.003,56654.0,56653.0,1.9088589]
[1725560283656,0.003,56654.0,56653.0,1.5480589]
[1725560284171,0.003,56654.0,56653.0,1.4597899]
[1725560284470,0.091268,56654.0,56653.0,0.0902699]
[1725560285765,0.540336,56654.0,56653.0,0.0020009]
[1725560286162,0.55012211,56654.0,56653.0,0.0020009]
[1725560286467,0.18932211,56654.0,56653.0,0.0020009]
[1725560286964,0.01278611,56654.0,56653.0,0.3302699]
[1725560287167,0.003,56654.0,56653.0,0.3302699]
[1725560290466,0.003,56654.0,56653.0,0.8597899]
[1725560291779,0.003,56654.0,56653.0,0.3302699]
[1725560293467,0.3638,56654.0,56653.0,0.3302699]
[1725560294470,0.3638,56654.0,56653.0,0.3342699]
[1725560294471,0.3628,56654.0,56653.0,0.3342699]
[1725560295072,0.3628,56654.0,56653.0,0.3392699]
[1725560295073,0.3608,56654.0,56653.0,0.3392699]
[1725560295973,0.3608,56654.0,56653.0,0.3402699]
[1725560296573,0.3608,56654.0,56653.0,0.3282699]
[1725560296780,0.3608,56654.0,56653.0,0.3372699]
[1725560297171,0.3608,56654.0,56653.0,0.3322699]
[1725560297364,0.3608,56654.0,56653.0,0.3332699]
[1725560297877,0.449068,56654.0,56653.0,0.3332699]
[1725560298379,0.449068,56654.0,56653.0,0.3312699]
[1725560300278,0.625604,56654.0,56653.0,0.0030009]
[1725560300581,0.6889238,56654.0,56653.0,0.0030009]
[1725560301369,0.6889238,56654.0,56653.0,0.0010009]
[1725560301577,0.6889238,56654.0,56653.0,0.0030009]
[1725560302177,0.6889238,56654.0,56653.0,0.0010009]
[1725560302487,0.6909238,56654.0,56653.0,0.0020009]
[1725560302867,1.8204438,56654.0,56653.0,0.0020009]
[1725560303071,1.8184438,56654.0,56653.0,9e-07]
[1725560303273,1.8214438,56654.0,56653.0,0.0010009]
[1725560303676,1.8204438,56654.0,56653.0,9e-07]
[1725560303882,1.2214438,56654.0,56653.0,0.0010009]
[1725560304069,0.6919238,56654.0,56653.0,0.0010009]
[1725560304275,0.6909238,56654.0,56653.0,9e-07]
[1725560304576,0.6919238,56654.0,56653.0,0.0010009]
[1725560305784,0.628604,56654.0,56653.0,0.0010009]
[1725560306273,0.626604,56654.0,56653.0,0.0010009]
[1725560306474,0.628604,56654.0,56653.0,0.0020009]
[1725560306682,0.264849,56644.0,56643.0,0.0041]
[1725560306875,0.264849,56644.0,56637.0,0.088294]
[1725560306876,0.088291,56639.0,56637.0,0.088294]
[1725560307080,0.4179,56638.0,56637.0,1.588294]
[1725560307578,0.4179,56638.0,56637.0,1.828294]
[1725560307779,0.506193,56638.0,56637.0,1.828294]
[1725560308278,0.594486,56638.0,56637.0,1.74]
[1725560308478,0.594486,56638.0,56634.0,0.328299]
[1725560308479,0.088297,56635.0,56634.0,0.328299]
[1725560309177,0.088297,56635.0,56634.0,1.828299]
[1725560309880,0.0883,56633.0,56632.0,0.0002649]
[1725560310081,0.1766,56633.0,56632.0,0.0002649]
[1725560312384,0.18654764,56633.0,56632.0,0.0092649]
[1725560312788,0.27484764,56633.0,56632.0,0.0092649]
[1725560313379,0.27484764,56633.0,56632.0,0.0192649]
[1725560317881,0.0883,56633.0,56632.0,0.1075669]
[1725560318082,0.449098,56635.0,56634.0,0.088299]
[1725560318286,0.3608,56635.0,56634.0,0.328299]
[1725560318788,0.449097,56635.0,56634.0,0.328299]
[1725560319194,0.449097,56635.0,56634.0,0.336299]
[1725560319393,0.449097,56635.0,56634.0,0.342299]
[1725560323901,0.088297,56635.0,56634.0,0.342299]
[1725560326894,0.450012,56639.0,56637.0,0.088293]
[1725560326895,0.088293,56638.0,56637.0,0.088293]
[1725560327091,0.088293,56638.0,56637.0,0.328293]
[1725560327483,0.449093,56638.0,56637.0,0.328293]
[1725560328289,0.449093,56638.0,56637.0,0.332293]
[1725560328490,0.449093,56638.0,56637.0,0.335293]
[1725560329403,0.537386,56638.0,56637.0,0.335293]
[1725560331695,0.537386,56638.0,56637.0,0.007]
[1725560331897,0.625679,56638.0,56637.0,0.007]
[1725560339709,0.537386,56638.0,56637.0,0.007]
[1725560340508,0.449093,56638.0,56637.0,0.095294]
[1725560340702,0.449093,56638.0,56637.0,0.335294]
[1725560341103,0.0594649,56643.0,56642.0,0.088286]
[1725560341405,0.0885499,56643.0,56642.0,0.328286]
[1725560342311,0.0002649,56643.0,56642.0,0.328286]
[1725560342809,0.0012649,56643.0,56642.0,0.328286]
[1725560343512,0.0895499,56643.0,56642.0,0.328286]
[1725560344409,0.0895499,56643.0,56642.0,0.088286]
[1725560346207,0.0885499,56643.0,56642.0,0.088286]
[1725560346408,0.0885499,56643.0,56642.0,0.095286]
[1725560346814,0.0885499,56643.0,56642.0,0.007]
[1725560347407,0.0885499,56643.0,56642.0,0.016]
[1725560349008,0.1768349,56643.0,56642.0,0.016]
[1725560350212,0.1768349,56643.0,56642.0,0.344286]
[1725560350606,0.0885499,56643.0,56642.0,0.344286]
[1725560352814,0.0885499,56643.0,56642.0,0.104286]
[1725560358516,0.5051199,56643.0,56642.0,0.016]
[1725560358716,0.4168349,56643.0,56642.0,0.016]
[1725560358910,0.5051199,56643.0,56642.0,0.016]
[1725560359510,1.1051199,56643.0,56633.0,0.0041]
[1725560359714,0.1766,56633.0,56632.0,0.0002649]
[1725560359920,0.18527535,56633.0,56632.0,0.0002649]
[1725560360221,0.44887535,56633.0,56632.0,0.0002649]
[1725560362018,0.44987535,56633.0,56632.0,0.0072649]
[1725560362721,0.45087535,56633.0,56632.0,0.0162649]
[1725560363521,0.74437535,56633.0,56632.0,0.0162649]
[1725560363730,0.45087535,56633.0,56632.0,0.0162649]
[1725560365130,0.46071844,56633.0,56632.0,0.0162649]
[1725560366430,1.06071844,56633.0,56632.0,1e-08]
[1725560366627,0.17663,56624.0,56623.0,0.0041]
[1725560366926,0.6008,56624.0,56617.0,0.088325]
[1725560367125,0.6008,56624.0,56614.0,0.088329]
[1725560367126,0.088329,56615.0,56614.0,0.088329]
[1725560367325,0.088329,56615.0,56614.0,0.089889]
[1725560367625,0.088329,56615.0,56614.0,0.088329]
[1725560368826,0.089329,56615.0,56614.0,0.096329]
[1725560369230,0.090329,56615.0,56614.0,0.105329]
[1725560370025,0.090329,56615.0,56614.0,0.017]
[1725560370026,0.178658,56615.0,56614.0,0.017]
[1725560370321,0.266987,56615.0,56614.0,0.017]
[1725560370722,0.796867,56615.0,56614.0,0.017]
[1725560372635,0.266987,56615.0,56614.0,0.017]
[1725560373525,0.178658,56615.0,56614.0,0.017]
[1725560375038,0.090329,56615.0,56614.0,0.34533]
[1725560375734,0.090329,56615.0,56614.0,0.10533]
[1725560377135,0.090329,56615.0,56614.0,0.017]
[1725560377440,0.506987,56615.0,56614.0,0.017]
[1725560378837,0.178658,56615.0,56614.0,0.017]
[1725560382343,0.090329,56615.0,56614.0,0.017]
[1725560382541,0.090329,56615.0,56614.0,0.10533]
[1725560383041,0.178658,56615.0,56614.0,0.10533]
[1725560383841,0.178658,56615.0,56614.0,0.017]
[1725560384643,0.418658,56615.0,56614.0,0.017]
[1725560385042,0.506987,56615.0,56614.0,0.017]
[1725560385243,1.636867,56615.0,56614.0,0.017]
[1725560385543,1.036867,56615.0,56614.0,0.017]
[1725560386143,1.636867,56615.0,56614.0,0.017]
[1725560387737,1.636867,56615.0,56614.0,0.016]
[1725560387948,1.636867,56615.0,56614.0,0.015]
[1725560388552,1.036867,56615.0,56614.0,0.015]
[1725560388852,0.418658,56615.0,56614.0,0.015]
[1725560389043,0.178658,56615.0,56614.0,0.015]
[1725560389743,0.418658,56615.0,56614.0,0.015]
[1725560389935,0.506987,56615.0,56614.0,0.015]
[1725560392041,0.418658,56615.0,56614.0,0.015]
[1725560392235,0.178658,56615.0,56614.0,0.015]
[1725560395750,0.090329,56615.0,56614.0,0.10333]
[1725560396749,0.178658,56615.0,56614.0,0.10333]
[1725560397255,0.090329,56615.0,56614.0,0.10333]
[1725560400652,0.330329,56615.0,56614.0,0.10333]
[1725560401756,0.090329,56615.0,56614.0,0.10333]
[1725560401953,0.002,56615.0,56614.0,0.19166]
[1725560402145,0.002,56615.0,56614.0,1.40987]
[1725560402345,0.0002649,56620.0,56619.0,0.176644]
[1725560402552,0.0002649,56620.0,56619.0,0.689122]
[1725560402851,0.0002649,56620.0,56619.0,2.5312929]
[1725560403359,0.0002649,56620.0,56619.0,3.078962]
[1725560403553,0.0002649,56620.0,56619.0,3.079962]
[1725560404452,0.0002649,56620.0,56619.0,3.319962]
[1725560404655,0.0002649,56620.0,56619.0,3.322962]
[1725560405646,0.0002649,56620.0,56619.0,3.411284]
[1725560405851,0.0002649,56620.0,56619.0,3.499606]
[1725560407254,0.0002649,56620.0,56619.0,3.5519369]
[1725560407654,0.0012649,56620.0,56619.0,3.5579369]
[1725560407866,0.088303,56632.0,56631.0,0.088304]
[1725560408058,0.3608,56636.0,56635.0,0.088297]
[1725560409056,0.45796446,56636.0,56635.0,0.088297]
[1725560409461,0.45996446,56636.0,56635.0,0.088297]
[1725560409765,0.088302,56633.0,56632.0,0.0883]
[1725560409961,0.088302,56633.0,56630.0,0.0002649]
[1725560409962,0.264912,56631.0,56630.0,0.0002649]
[1725560411055,0.3824817,56631.0,56630.0,0.0002649]
[1725560411644,0.3824817,56631.0,56630.0,0.0042649]
[1725560412254,0.3854817,56631.0,56630.0,0.0032649]
[1725560412459,0.3874817,56631.0,56630.0,0.0002649]
[1725560413052,0.38748205,56631.0,56630.0,0.0002649]
[1725560413560,0.61622272,56631.0,56630.0,0.0002649]
[1725560413761,0.62588458,56631.0,56630.0,0.0002649]
[1725560414060,0.39714391,56631.0,56630.0,0.0002649]
[1725560414257,0.39414391,56631.0,56630.0,0.0012649]
[1725560414557,0.40214391,56631.0,56630.0,0.0012649]
[1725560414757,0.41014391,56631.0,56630.0,0.0022649]
[1725560415060,0.40714391,56631.0,56630.0,0.0022649]
[1725560415560,0.40214391,56631.0,56630.0,0.0012649]
[1725560416359,0.22553591,56631.0,56630.0,0.0012649]
[1725560416554,0.06421761,56631.0,56630.0,0.0895699]
[1725560417159,0.15252161,56631.0,56630.0,0.0895699]
[1725560417747,0.098304,56631.0,56630.0,0.0895699]
[1725560419062,0.541408,56631.0,56630.0,0.0002649]
[1725560419355,0.542408,56631.0,56630.0,0.0002649]
[1725560420558,0.538408,56631.0,56630.0,0.0012649]
[1725560421161,0.3608,56631.0,56630.0,0.0895699]
[1725560421360,0.004,56631.0,56630.0,0.0885699]
[1725560421562,0.005,56631.0,56630.0,0.0885699]
[1725560422165,0.005,56631.0,56630.0,0.1768749]
[1725560422356,0.004,56631.0,56630.0,0.5386749]
[1725560422560,0.004,56631.0,56630.0,1.6684349]
[1725560422762,0.004,56631.0,56630.0,1.7239349]
[1725560423057,0.4493529,56641.0,56640.0,0.08829]
[1725560423359,0.0885529,56641.0,56640.0,0.32829]
[1725560423559,0.0002649,56641.0,56640.0,0.32829]
[1725560424753,0.0012649,56641.0,56640.0,0.32829]
[1725560424963,0.0042649,56641.0,56640.0,1.54622]
[1725560425368,0.0042649,56641.0,56640.0,1.45793]
[1725560425961,0.0584563,56641.0,56640.0,1.46778789]
[1725560426559,0.0584563,56641.0,56640.0,2.96778789]
[1725560427664,0.05845635,56641.0,56640.0,2.36778789]
[1725560428665,0.05845635,56641.0,56640.0,2.45607789]
[1725560429666,0.05845635,56641.0,56640.0,1.92643789]
[1725560430568,0.05845635,56641.0,56640.0,0.42643789]
[1725560431264,0.05845635,56641.0,56640.0,0.33814789]
[1725560431467,0.05845635,56641.0,56640.0,0.08829]
[1725560431673,0.14674435,56641.0,56640.0,0.08829]
[1725560432565,0.14675057,56641.0,56640.0,0.08829]
[1725560432963,0.0925529,56641.0,56640.0,0.08829]
[1725560433266,0.088293,56638.0,56637.0,0.088294]
[1725560433473,0.088304,56631.0,56630.0,0.3610649]
[1725560433669,0.088304,56631.0,56630.0,0.4493699]
[1725560433865,0.088304,56631.0,56630.0,0.3610649]
[1725560434769,0.088304,56631.0,56630.0,0.0002649]
[1725560435165,0.089304,56631.0,56630.0,0.0082649]
[1725560435671,0.088304,56631.0,56630.0,0.0002649]
[1725560435972,0.090304,56631.0,56630.0,0.0002649]
[1725560436471,0.090304,56631.0,56630.0,0.2502649]
[1725560436472,0.091304,56631.0,56630.0,0.2502649]
[1725560436977,0.003,56631.0,56630.0,0.3385699]
[1725560437363,0.004,56631.0,56630.0,0.3295699]
[1725560437875,0.092304,56631.0,56630.0,0.3295699]
[1725560438664,0.091304,56631.0,56630.0,0.3295699]
[1725560439069,0.091304,56631.0,56630.0,0.3285699]
[1725560439271,0.092304,56631.0,56630.0,0.3375699]
[1725560439574,0.004,56631.0,56630.0,0.3375699]
[1725560440176,0.004,56631.0,56630.0,0.34726946]
[1725560440371,0.004,56631.0,56630.0,0.3375699]
[1725560440574,0.088302,56632.0,56631.0,0.088304]
[1725560441869,0.089302,56632.0,56631.0,0.094304]
[1725560443369,0.090302,56632.0,56631.0,0.101304]
[1725560449971,0.089302,56632.0,56631.0,0.094304]
[1725560450177,0.090302,56632.0,56631.0,0.102304]
[1725560450378,0.090302,56632.0,56631.0,0.101304]
[1725560450379,0.089302,56632.0,56631.0,0.101304]
[1725560450769,0.088302,56632.0,56631.0,0.092304]
[1725560451078,0.088302,56632.0,56631.0,0.095304]
[1725560452974,0.088302,56632.0,56631.0,0.091304]
[1725560453175,0.088302,56632.0,56631.0,0.095304]
[1725560453877,0.088302,56632.0,56631.0,0.091304]
[1725560454179,0.088302,56632.0,56631.0,0.095304]
[1725560455573,0.777404,56632.0,56631.0,0.007]
[1725560455970,0.449102,56632.0,56631.0,0.091304]
[1725560456176,0.83161258,56632.0,56631.0,0.003]
[1725560456378,0.98326084,56632.0,56631.0,0.007]
[1725560456971,0.98326084,56632.0,56631.0,0.003]
[1725560457175,0.98326084,56632.0,56631.0,0.002]
[1725560457480,0.89495884,56632.0,56631.0,0.002]
[1725560457775,0.98326084,56632.0,56631.0,0.002]
[1725560459582,0.89595884,56632.0,56631.0,0.002]
[1725560459778,0.89595884,56632.0,56630.0,0.0002649]
[1725560460082,0.29416284,56631.0,56630.0,0.0002649]
[1725560460284,0.11755484,56631.0,56630.0,0.3285699]
[1725560460580,0.05420858,56631.0,56630.0,0.6893699]
[1725560460776,0.05420858,56631.0,56630.0,0.7776749]
[1725560460974,0.05420858,56631.0,56630.0,2.8776749]
[1725560461171,0.05420858,56631.0,56630.0,3.4074349]
[1725560461687,0.05420858,56631.0,56630.0,3.41722996]
[1725560462686,0.05420041,56631.0,56630.0,3.32892496]
[1725560462984,0.05420041,56631.0,56630.0,3.33092496]
[1725560463181,0.088291,56640.0,56638.0,0.088292]
[1725560463483,0.088291,56640.0,56639.0,0.088291]
[1725560464591,0.090291,56640.0,56639.0,0.088291]
[1725560466184,0.090291,56640.0,56637.0,0.2500644]
[1725560466185,0.088293,56638.0,56637.0,0.2500644]
[1725560466979,0.088293,56638.0,56637.0,0.24]
[1725560467382,0.088293,56638.0,56637.0,0.003]
[1725560467891,0.088293,56638.0,56637.0,0.091294]
[1725560468787,0.088293,56638.0,56637.0,0.094294]
[1725560469083,0.088293,56638.0,56637.0,0.006]
[1725560469585,0.088296,56636.0,56635.0,0.088297]
[1725560469782,0.08829,56640.0,56630.0,1.8626249]
[1725560469783,0.24,56639.0,56630.0,1.8626249]
[1725560469976,0.24,56639.0,56630.0,0.0002649]
[1725560469977,0.176608,56631.0,56630.0,0.0002649]
[1725560470390,0.264912,56631.0,56630.0,0.0002649]
[1725560471081,0.264912,56631.0,56630.0,0.0072649]
[1725560472190,0.264912,56631.0,56630.0,0.0082649]
[1725560472692,0.264912,56631.0,56630.0,0.0012649]
[1725560472881,0.27463838,56631.0,56630.0,0.0012649]
[1725560473395,0.51463838,56631.0,56630.0,0.0012649]
[1725560474589,0.27463838,56631.0,56630.0,0.0012649]
[1725560477983,0.63543838,56631.0,56630.0,0.0012649]
[1725560478988,0.68965247,56631.0,56630.0,0.0012649]
[1725560479291,0.264939,56625.0,56624.0,9e-07]
[1725560479493,1.44976099,56625.0,56624.0,9e-07]
[1725560479793,2.13807399,56625.0,56624.0,9e-07]
[1725560480384,2.13807399,56625.0,56619.0,8e-07]
[1725560480584,0.954084,56620.0,56619.0,8e-07]
[1725560480780,1.00830599,56620.0,56619.0,8e-07]
[1725560480987,2.13814599,56620.0,56619.0,8e-07]
[1725560482097,2.13814599,56620.0,56605.0,0.0082]
[1725560482098,0.176686,56606.0,56605.0,0.0082]
[1725560482297,0.176686,56606.0,56599.0,0.09801512]
[1725560482298,0.08835,56601.0,56599.0,0.09801512]
[1725560483495,0.08935,56601.0,56600.0,0.463152]
[1725560484701,0.001,56601.0,56600.0,0.463152]
[1725560484889,0.0012649,56606.0,56605.0,0.088344]
[1725560485091,0.0012649,56606.0,56605.0,0.328344]
[1725560485288,0.0002649,56606.0,56605.0,0.328344]
[1725560486285,0.00080746,56606.0,56605.0,0.342344]
[1725560486486,0.08915046,56606.0,56605.0,0.342344]
[1725560486887,0.09015046,56606.0,56605.0,0.356344]
[1725560487789,0.00180746,56606.0,56605.0,0.356344]
[1725560488198,0.09015046,56606.0,56605.0,0.356344]
[1725560497396,0.09015046,56606.0,56605.0,0.36606802]
[1725560499100,0.00180746,56606.0,56605.0,1.94521202]
[1725560499302,0.0002649,56611.0,56610.0,0.176672]
[1725560499504,0.0002649,56611.0,56610.0,0.416672]
[1725560499708,0.0002649,56611.0,56610.0,0.46883909]
[1725560500199,0.0002649,56611.0,56610.0,0.416672]
[1725560500407,0.0022649,56611.0,56610.0,0.48884934]
[1725560500792,0.0539,56619.0,56618.0,0.088324]
[1725560500997,0.0539,56619.0,56618.0,0.328324]
[1725560501201,0.36172,56620.0,56619.0,0.088322]
[1725560501400,0.3608,56620.0,56619.0,0.088322]
[1725560501601,0.449121,56620.0,56619.0,0.088322]
[1725560502507,0.449121,56620.0,56614.0,0.0546649]
[1725560502508,0.088329,56615.0,56614.0,0.0885949]
[1725560502815,0.088329,56615.0,56614.0,0.0002649]
[1725560503804,0.088329,56615.0,56614.0,0.0052649]
[1725560503805,0.449129,56615.0,56614.0,0.0052649]
[1725560504108,0.537458,56615.0,56614.0,0.0112649]
[1725560505907,0.54706301,56615.0,56614.0,0.0112649]
[1725560511896,0.54706301,56615.0,56614.0,0.2512649]
[1725560511897,0.45873401,56615.0,56614.0,0.2512649]
[1725560512920,0.45873401,56615.0,56614.0,0.3395949]
[1725560513808,0.45873401,56615.0,56614.0,0.15197688]
[1725560514005,0.45873401,56615.0,56614.0,0.0112649]
[1725560514208,0.63539201,56615.0,56614.0,0.0112649]
[1725560514411,0.54706301,56615.0,56614.0,0.0112649]
[1725560514919,0.63539201,56615.0,56614.0,0.0112649]
[1725560515107,0.54706301,56615.0,56614.0,0.0112649]
[1725560516307,0.60129235,56615.0,56614.0,0.0112649]
[1725560517215,0.54706301,56615.0,56614.0,0.0112649]
[1725560517414,0.6012914,56615.0,56614.0,0.0112649]
[1725560520820,0.6012915,56615.0,56614.0,0.0112649]
[1725560521518,0.50335749,56615.0,56614.0,0.3395949]
[1725560521814,0.449123,56619.0,56618.0,0.264972]
[1725560521815,0.00092,56619.0,56618.0,0.264972]
[1725560522020,0.0002649,56625.0,56624.0,0.088315]
[1725560522217,0.0544802,56625.0,56624.0,0.088315]
[1725560522416,0.0002649,56625.0,56624.0,0.088315]
[1725560523309,0.0062649,56625.0,56624.0,0.089315]
[1725560525322,0.0112649,56625.0,56624.0,0.089315]
[1725560525516,0.0112649,56625.0,56624.0,0.450115]
[1725560525913,0.0052649,56625.0,56624.0,0.449115]
[1725560526124,0.0062649,56625.0,56624.0,0.458115]
[1725560526322,0.0062649,56625.0,56624.0,1.587915]
[1725560526513,0.088299,56634.0,56633.0,0.088299]
[1725560526823,0.088299,56634.0,56633.0,0.328299]
[1725560527527,0.088304,56631.0,56630.0,0.328305]
[1725560529719,0.089304,56631.0,56630.0,0.328305]
[1725560530428,0.14351148,56631.0,56630.0,0.328305]
[1725560531018,0.14351148,56631.0,56628.0,0.0885719]
[1725560531019,0.088307,56629.0,56628.0,0.0885719]
[1725560531219,0.14251448,56629.0,56628.0,0.0885719]
[1725560532233,0.14251448,56629.0,56628.0,0.0935719]
[1725560532531,0.23082148,56629.0,56628.0,0.0052649]
[1725560533529,0.14251448,56629.0,56628.0,0.0052649]
[1725560533923,0.14251448,56629.0,56628.0,0.0905729]
[1725560534122,0.05720748,56629.0,56628.0,0.0905729]
[1725560534326,0.003,56629.0,56628.0,0.0905729]
[1725560534832,0.05720594,56629.0,56628.0,0.0905729]
[1725560535028,0.05420594,56629.0,56628.0,0.0905729]
[1725560535221,0.0542062,56631.0,56628.0,0.0052649]
[1725560535437,0.0542062,56631.0,56630.0,0.24]
[1725560536030,0.0542062,56631.0,56630.0,0.6008]
[1725560536937,0.1112641,56639.0,56638.0,0.088293]
[1725560537129,0.10866533,56639.0,56638.0,0.328293]
[1725560537335,0.19695633,56639.0,56638.0,0.328293]
[1725560538137,0.19695633,56639.0,56638.0,0.24]
[1725560538324,0.20095633,56639.0,56638.0,0.241]
[1725560538530,0.1467551,56639.0,56638.0,0.241]
[1725560539538,0.1527551,56639.0,56638.0,0.242]
[1725560539933,0.1527551,56639.0,56638.0,0.330293]
[1725560542135,0.2410461,56639.0,56638.0,0.002]
[1725560542434,0.3293371,56639.0,56638.0,0.002]
[1725560543631,1.70767852,56639.0,56638.0,0.002]
[1725560543831,0.57799852,56639.0,56638.0,0.002]
[1725560544037,0.33799852,56639.0,56638.0,0.002]
[1725560546939,0.3293371,56639.0,56638.0,0.002]
[1725560547132,0.2410461,56639.0,56638.0,0.002]
[1725560547333,0.1527551,56639.0,56638.0,0.242]
[1725560547535,0.1527551,56639.0,56638.0,0.330293]
[1725560555545,0.20695674,56639.0,56638.0,0.330293]
[1725560560652,0.1527551,56639.0,56638.0,0.330293]
[1725560561450,0.0102641,56639.0,56638.0,0.330293]
[1725560561649,0.0102641,56639.0,56638.0,0.418586]
[1725560561947,0.0102641,56639.0,56638.0,0.506879]
[1725560562153,0.09237,56653.0,56647.0,0.088279]
[1725560562461,0.088272,56652.0,56651.0,0.088271]
[1725560562956,0.00980239,56653.0,56652.0,0.088271]
[1725560563142,0.0595,56656.0,56655.0,0.088266]
[1725560563347,0.142963,56657.0,56656.0,0.088265]
[1725560564751,0.147963,56657.0,56656.0,0.089265]
[1725560564955,0.147963,56657.0,56656.0,0.090265]
[1725560564956,0.151963,56657.0,56656.0,0.090265]
[1725560565755,0.151963,56657.0,56656.0,0.002]
[1725560566451,0.240226,56657.0,56656.0,0.002]
[1725560568449,0.35773026,56657.0,56656.0,0.002]
[1725560569052,0.21476726,56657.0,56656.0,0.090265]
[1725560569243,0.21476756,56657.0,56656.0,0.090265]
[1725560569442,0.21476756,56657.0,56656.0,0.002]
[1725560570860,0.30303056,56657.0,56656.0,0.002]
[1725560573547,0.39129356,56657.0,56656.0,0.002]
[1725560574256,0.39129796,56657.0,56656.0,0.002]
[1725560575462,0.273789,56657.0,56656.0,0.002]
[1725560575859,0.513789,56657.0,56656.0,0.002]
[1725560576555,0.273789,56657.0,56656.0,0.002]
[1725560578159,0.185526,56657.0,56656.0,0.002]
[1725560579961,0.513789,56657.0,56656.0,0.002]
[1725560580669,0.273789,56657.0,56656.0,0.002]
[1725560584571,1.643309,56657.0,56656.0,0.002]
[1725560584973,0.513789,56657.0,56656.0,0.002]
[1725560585264,0.273789,56657.0,56656.0,0.002]
[1725560585471,0.273789,56657.0,56656.0,0.090265]
[1725560585472,0.009,56657.0,56656.0,0.090265]
[1725560586169,0.009,56657.0,56656.0,1.590265]
[1725560586370,0.06938641,56663.0,56656.0,1.590265]
[1725560586371,0.00988641,56663.0,56662.0,0.088255]
[1725560586561,0.449051,56665.0,56664.0,0.088252]
[1725560587865,0.449051,56665.0,56664.0,0.089252]
[1725560589370,0.088251,56665.0,56664.0,0.090252]
[1725560590558,0.088251,56665.0,56664.0,0.002]
[1725560590559,0.23067811,56665.0,56664.0,0.002]
[1725560590763,0.47067811,56665.0,56664.0,0.002]
[1725560590963,0.75252291,56665.0,56664.0,0.002]
[1725560591168,0.62223604,56665.0,56664.0,0.002]
[1725560592177,0.38223604,56665.0,56664.0,0.002]
[1725560592570,0.62223604,56665.0,56664.0,0.002]
[1725560592976,0.62224236,56665.0,56664.0,0.002]
[1725560593364,1.15168236,56665.0,56664.0,0.002]
[1725560593669,0.29399036,56665.0,56664.0,0.002]
[1725560593868,0.23068443,56665.0,56664.0,0.002]
[1725560595981,0.47068443,56665.0,56664.0,0.002]
[1725560596185,0.62224236,56665.0,56664.0,0.002]
[1725560597183,1.15168236,56665.0,56664.0,0.002]